fUST/lending_fUST_20250817
["ID","MTS","AMOUNT","RATE_DAILY","PERIOD"]
[379878811,1755430242159,-480.0,0.00019897,2]
[379878813,1755430242169,-480.0,0.00019897,2]
[379878815,1755430242182,-480.0,0.00019897,2]
[379878817,1755430242195,-503.93,0.00019899,2]
[379878818,1755430242207,-480.0,0.00019899,2]
[379878820,1755430242217,-890.92,0.00019899,2]
[379878821,1755430242227,-2412.17,0.000199,2]
[379878824,1755430242236,-480.0,0.000199,2]
[379878825,1755430242246,-4144.8200995,0.000199,2]
[379878827,1755430242255,-305.0,0.00019904,2]
[379878830,1755430242265,-500.0,0.0002,2]
[379878832,1755430242275,-5008.56702,0.0002,2]
[379878834,1755430242284,-200.0,0.00020004,20]
[379878835,1755430242295,-200.0,0.00020004,20]
[379878837,1755430242305,-200.0,0.00020004,20]
[379878840,1755430242315,-200.0,0.00020004,20]
[379878842,1755430242324,-200.0,0.00020004,20]
[379878844,1755430242333,-200.0,0.00020004,20]
[379878845,1755430242343,-200.0,0.00020004,20]
[379878848,1755430242352,-200.0,0.00020004,20]
[379878849,1755430242361,-200.0,0.00020004,20]
[379878851,1755430242370,-200.0,0.00020004,20]
[379878853,1755430242380,-600.0,0.00020004,20]
[379878855,1755430242389,-160.0,0.00020027,2]
[379878857,1755430242399,-160.0,0.00020027,2]
[379878860,1755430242412,-528.48506731,0.00020027,2]
[379878862,1755430242421,-215.71995163,0.00020027,2]
[379878864,1755430242430,-375.77065697,0.00020027,2]
[379878866,1755430242439,-417.15472785,0.00020027,2]
[379878868,1755430242449,-160.0,0.00020027,2]
[379878870,1755430242459,-12682.46447135,0.00020027,2]
[379878872,1755430242468,-232.1512529,0.00020027,2]
[379878874,1755430242477,-160.0,0.00020027,2]
[379878876,1755430242486,-843.71309931,0.00020027,2]
[379878878,1755430242496,-160.0,0.00020027,2]
[379878880,1755430242506,-500.0,0.00020082,2]
[379878881,1755430242515,-500.0,0.00020131,2]
[379878883,1755430242524,-500.0,0.00020131,2]
[379878885,1755430242534,-500.0,0.00020131,2]
[379878887,1755430242543,-500.0,0.00020131,2]
[379878889,1755430242552,-502.31631118,0.00020131,2]
[379878892,1755430242562,-500.0,0.00020131,2]
[379878894,1755430242571,-480.0,0.00020148,2]
[379878896,1755430242580,-480.0,0.00020148,2]
[379878898,1755430242590,-1508.74,0.00020148,2]
[379878899,1755430242599,-480.0,0.00020148,2]
[379878902,1755430242608,-1168.17,0.00020148,2]
[379878904,1755430242618,-480.0,0.00020148,2]
[379878906,1755430242627,-575.81,0.0002016,2]
[379878907,1755430242638,-1028.3,0.0002016,2]
[379878909,1755430242647,-489.31,0.0002016,2]
[379878911,1755430242657,-1293.4,0.0002016,2]
[379878913,1755430242666,-1959.51,0.0002016,2]
[379878915,1755430242675,-480.0,0.0002016,2]
[379878917,1755430242685,-1181.6,0.0002016,2]
[379878919,1755430242694,-480.0,0.0002016,2]
[379878922,1755430242714,-480.0,0.0002016,2]
[379878924,1755430242726,-502.33,0.0002016,2]
[379878926,1755430242736,-798.72,0.0002016,2]
[379878928,1755430242746,-498.67,0.0002016,2]
[379878930,1755430242756,-480.0,0.0002016,2]
[379878932,1755430242766,-480.0,0.0002016,2]
[379878935,1755430242777,-480.0,0.0002016,2]
[379878937,1755430242787,-886.73,0.0002016,2]
[379878940,1755430242796,-480.0,0.0002016,2]
[379878942,1755430242806,-480.0,0.0002016,2]
[379878944,1755430242816,-480.0,0.0002016,2]
[379878945,1755430242825,-480.0,0.0002016,2]
[379878946,1755430242835,-544.57,0.0002016,2]
[379878947,1755430242845,-480.0,0.0002016,2]
[379878948,1755430242855,-480.0,0.0002016,2]
[379878950,1755430242864,-480.0,0.0002016,2]
[379878951,1755430242874,-480.0,0.0002016,2]
[379878952,1755430242884,-480.0,0.0002016,2]
[379878953,1755430242894,-499.1,0.0002016,2]
[379878954,1755430242904,-3044.81,0.0002016,2]
[379878955,1755430242913,-487.11,0.0002016,2]
[379878956,1755430242923,-714.17,0.0002016,2]
[379878957,1755430242933,-529.04,0.0002016,2]
[379878959,1755430242943,-606.27,0.00020161,2]
[379878961,1755430242954,-480.0,0.00020161,2]
[379878963,1755430242964,-480.0,0.00020161,2]
[379878965,1755430242973,-480.0,0.00020161,2]
[379878967,1755430242984,-480.0,0.00020161,2]
[379878969,1755430242994,-480.0,0.00020161,2]
[379878970,1755430243004,-688.84,0.00020161,2]
[379878971,1755430243013,-480.0,0.00020161,2]
[379878973,1755430243023,-586.3,0.00020161,2]
[379878975,1755430243032,-650.57,0.00020161,2]
[379878977,1755430243042,-480.0,0.00020161,2]
[379878979,1755430243052,-480.0,0.00020161,2]
[379878981,1755430243062,-480.0,0.00020161,2]
[379878982,1755430243071,-480.0,0.00020161,2]
[379878983,1755430243082,-480.0,0.00020161,2]
[379878984,1755430243091,-480.0,0.00020161,2]
[379878986,1755430243101,-531.88,0.00020161,2]
[379878993,1755430243175,-480.0,0.00020161,2]
[379878995,1755430243185,-480.0,0.00020161,2]
[379878997,1755430243194,-1056.33,0.00020161,2]
[379878999,1755430243203,-480.0,0.00020161,2]
[379879001,1755430243212,-599.32,0.00020161,2]
[379879003,1755430243222,-480.0,0.00020161,2]
[379879005,1755430243231,-838.54,0.00020161,2]
[379879007,1755430243240,-480.0,0.00020161,2]
[379879009,1755430243249,-480.0,0.00020161,2]
[379879011,1755430243258,-535.36,0.00020161,2]
[379879013,1755430243267,-480.0,0.00020161,2]
[379879015,1755430243276,-480.0,0.00020161,2]
[379879017,1755430243286,-334.2,0.00020163,2]
[379879019,1755430243296,-480.0,0.00020169,2]
[379879021,1755430243305,-480.0,0.00020169,2]
[379879023,1755430243314,-480.0,0.00020169,2]
[379879025,1755430243324,-480.0,0.00020169,2]
[379879027,1755430243333,-480.0,0.00020169,2]
[379879029,1755430243342,-480.0,0.00020169,2]
[379879031,1755430243352,-480.0,0.00020169,2]
[379879033,1755430243361,-480.0,0.00020169,2]
[379879035,1755430243371,-480.0,0.00020169,2]
[379879037,1755430243380,-958.76,0.00020169,2]
[379879039,1755430243390,-690.4,0.00020169,2]
[379879041,1755430243400,-480.0,0.00020169,2]
[379879043,1755430243416,-480.0,0.00020169,2]
[379879045,1755430243426,-6277.47,0.00020169,2]
[379879047,1755430243436,-597.43,0.00020169,2]
[379879049,1755430243446,-1937.56,0.00020169,2]
[379879051,1755430243456,-480.0,0.00020169,2]
[379879053,1755430243465,-1343.35,0.00020169,2]
[379879055,1755430243475,-480.0,0.0002017,2]
[379879057,1755430243486,-480.0,0.0002017,2]
[379879059,1755430243495,-480.0,0.0002017,2]
[379879061,1755430243504,-6668.92,0.0002017,2]
[379879063,1755430243513,-767.31,0.0002017,2]
[379879065,1755430243522,-4525.14,0.0002017,2]
[379879067,1755430243531,-480.0,0.00020171,2]
[379879069,1755430243540,-480.0,0.00020171,2]
[379879071,1755430243551,-480.0,0.00020171,2]
[379879073,1755430243560,-480.0,0.00020171,2]
[379879074,1755430243570,-480.0,0.00020171,2]
[379879076,1755430243580,-231.92960563,0.00020171,2]
[379879078,1755430243589,-480.0,0.00020171,2]
[379879080,1755430243599,-399.84,0.00020171,2]
[379879082,1755430243608,-480.0,0.00020171,2]
[379879084,1755430243622,-480.0,0.00020171,2]
[379879086,1755430243640,-480.0,0.00020171,2]
[379879088,1755430243650,-480.0,0.00020171,2]
[379879090,1755430243659,-480.0,0.00020171,2]
[379879092,1755430243669,-1053.7,0.00020171,2]
[379879094,1755430243679,-750.92,0.00020171,2]
[379879096,1755430243688,-384.88652808,0.00020171,2]
[379879098,1755430243697,-480.0,0.00020171,2]
[379879100,1755430243707,-662.97,0.00020171,2]
[379879102,1755430243716,-480.0,0.00020171,2]
[379879104,1755430243725,-593.33,0.00020171,2]
[379879106,1755430243734,-480.0,0.00020171,2]
[379879108,1755430243743,-1808.22,0.00020171,2]
[379879110,1755430243752,-480.0,0.00020171,2]
[379879112,1755430243761,-480.0,0.00020171,2]
[379879113,1755430243770,-480.0,0.00020171,2]
[379879115,1755430243784,-503.93,0.00020173,2]
[379879117,1755430243793,-480.0,0.00020173,2]
[379879119,1755430243803,-2412.17,0.00020173,2]
[379879121,1755430243812,-480.0,0.00020173,2]
[379879123,1755430243821,-890.92,0.00020173,2]
[379879125,1755430243831,-162.70618793,0.00020219,2]
[379879127,1755430243840,-150.06286568,0.00020219,2]
[379879129,1755430243849,-986.25898321,0.0002022,2]
[379879131,1755430243859,-505.08806189,0.00020221,2]
[379879133,1755430243868,-491.15,0.00020222,2]
[379879135,1755430243877,-500.0,0.00020281,2]
[379879137,1755430243886,-175.43519887,0.00020281,2]
[379879139,1755430243896,-242.97626793,0.00020281,2]
[379879141,1755430243905,-500.0,0.00020286,2]
[379879143,1755430243914,-500.0,0.00020286,2]
[379879145,1755430243923,-500.0,0.00020286,2]
[379879147,1755430243933,-500.0,0.00020286,2]
[379879149,1755430243942,-500.0,0.00020286,2]
[379879151,1755430243951,-500.0,0.00020286,2]
[379879153,1755430243960,-500.0,0.00020286,2]
[379879155,1755430243970,-500.0,0.00020286,2]
[379879157,1755430243979,-500.0,0.00020286,2]
[379879159,1755430243989,-500.0,0.00020286,2]
[379879161,1755430243998,-160.31078128,0.00020286,2]
[379879163,1755430244008,-500.0,0.00020286,2]
[379879165,1755430244017,-500.0,0.00020286,2]
[379879167,1755430244026,-500.0,0.00020286,2]
[379879169,1755430244036,-500.0,0.00020286,2]
[379879171,1755430244045,-500.0,0.00020286,2]
[379879173,1755430244054,-500.0,0.00020286,2]
[379879175,1755430244064,-500.0,0.00020296,2]
[379879177,1755430244073,-500.0,0.00020303,2]
[379879178,1755430244082,-500.0,0.00020303,2]
[379879180,1755430244092,-500.5836322,0.00020303,2]
[379879182,1755430244102,-500.0,0.00020303,2]
[379879184,1755430244111,-500.0,0.00020306,2]
[379879186,1755430244121,-500.0,0.00020306,2]
[379879188,1755430244130,-500.64506414,0.00020306,2]
[379879190,1755430244140,-636.38179894,0.00020306,2]
[379879192,1755430244150,-500.0,0.00020306,2]
[379879194,1755430244160,-334.2,0.00020316,2]
[379879196,1755430244170,-162.70618793,0.00020384,2]
[379879198,1755430244180,-150.06286568,0.00020384,2]
[379879200,1755430244191,-4144.8200994,0.00020403,2]
[379879202,1755430244200,-480.0,0.00020422,2]
[379879204,1755430244212,-480.0,0.00020422,2]
[379879206,1755430244222,-1508.74,0.00020422,2]
[379879208,1755430244232,-480.0,0.00020422,2]
[379879210,1755430244242,-1168.17,0.00020422,2]
[379879212,1755430244251,-480.0,0.00020422,2]
[379879214,1755430244260,-575.81,0.00020434,2]
[379879216,1755430244270,-1028.3,0.00020434,2]
[379879218,1755430244279,-489.31,0.00020434,2]
[379879220,1755430244289,-1293.4,0.00020434,2]
[379879222,1755430244298,-1959.51,0.00020434,2]
[379879225,1755430244308,-480.0,0.00020434,2]
[379879227,1755430244317,-1181.6,0.00020434,2]
[379879229,1755430244327,-480.0,0.00020434,2]
[379879231,1755430244336,-407.6818454,0.00020434,2]
[379879233,1755430244346,-502.33,0.00020434,2]
[379879235,1755430244356,-798.72,0.00020434,2]
[379879237,1755430244366,-498.67,0.00020434,2]
[379879239,1755430244375,-480.0,0.00020434,2]
[379879241,1755430244385,-480.0,0.00020434,2]
[379879243,1755430244395,-553.69228171,0.00020434,2]
[379879245,1755430244408,-886.73,0.00020434,2]
[379879247,1755430244424,-480.0,0.00020434,2]
[379879249,1755430244434,-480.0,0.00020434,2]
[379879251,1755430244444,-480.0,0.00020434,2]
[379879253,1755430244453,-480.0,0.00020434,2]
[379879255,1755430244464,-544.57,0.00020434,2]
[379879257,1755430244475,-480.0,0.00020434,2]
[379879259,1755430244484,-480.0,0.00020434,2]
[379879261,1755430244494,-480.0,0.00020434,2]
[379879263,1755430244504,-480.0,0.00020434,2]
[379879265,1755430244514,-480.0,0.00020434,2]
[379879267,1755430244524,-499.1,0.00020434,2]
[379879269,1755430244533,-3044.81,0.00020434,2]
[379879271,1755430244543,-487.11,0.00020434,2]
[379879273,1755430244553,-714.17,0.00020434,2]
[379879275,1755430244562,-529.04,0.00020434,2]
[379879277,1755430244572,-606.27,0.00020435,2]
[379879279,1755430244581,-480.0,0.00020435,2]
[379879281,1755430244591,-414.584173,0.00020435,2]
[379879283,1755430244600,-480.0,0.00020435,2]
[379879285,1755430244610,-561.22699098,0.00020435,2]
[379879287,1755430244619,-426.67869876,0.00020435,2]
[379879289,1755430244629,-688.84,0.00020435,2]
[379879291,1755430244638,-480.0,0.00020435,2]
[379879293,1755430244648,-650.57,0.00020435,2]
[379879295,1755430244657,-480.0,0.00020435,2]
[379879297,1755430244667,-405.73699553,0.00020435,2]
[379879299,1755430244677,-480.0,0.00020435,2]
[379879301,1755430244687,-205.41063649,0.00020435,2]
[379879303,1755430244696,-480.0,0.00020435,2]
[379879305,1755430244706,-480.0,0.00020435,2]
[379879307,1755430244715,-531.88,0.00020435,2]
[379879309,1755430244725,-480.0,0.00020435,2]
[379879311,1755430244735,-480.0,0.00020435,2]
[379879313,1755430244744,-1056.33,0.00020435,2]
[379879315,1755430244754,-480.0,0.00020435,2]
[379879317,1755430244763,-599.32,0.00020435,2]
[379879319,1755430244773,-480.0,0.00020435,2]
[379879321,1755430244784,-838.54,0.00020435,2]
[379879323,1755430244794,-480.0,0.00020435,2]
[379879325,1755430244803,-480.0,0.00020435,2]
[379879327,1755430244813,-535.36,0.00020435,2]
[379879329,1755430244823,-480.0,0.00020435,2]
[379879331,1755430244832,-480.0,0.00020435,2]
[379879333,1755430244841,-480.0,0.00020443,2]
[379879335,1755430244851,-409.31194675,0.00020443,2]
[379879337,1755430244860,-480.0,0.00020443,2]
[379879339,1755430244870,-480.0,0.00020443,2]
[379879341,1755430244879,-408.30601284,0.00020443,2]
[379879343,1755430244889,-480.0,0.00020443,2]
[379879345,1755430244899,-480.0,0.00020443,2]
[379879347,1755430244908,-480.0,0.00020443,2]
[379879349,1755430244918,-480.0,0.00020443,2]
[379879351,1755430244928,-958.76,0.00020443,2]
[379879353,1755430244937,-690.4,0.00020443,2]
[379879355,1755430244947,-480.0,0.00020443,2]
[379879357,1755430244957,-480.0,0.00020443,2]
[379879359,1755430244966,-6277.47,0.00020443,2]
[379879361,1755430244976,-597.43,0.00020443,2]
[379879363,1755430244986,-1937.56,0.00020443,2]
[379879364,1755430244995,-406.17590505,0.00020443,2]
[379879367,1755430245006,-1343.35,0.00020443,2]
[379879369,1755430245016,-480.0,0.00020444,2]
[379879371,1755430245026,-406.07024579,0.00020444,2]
[379879373,1755430245035,-408.91363413,0.00020444,2]
[379879375,1755430245045,-6668.92,0.00020444,2]
[379879377,1755430245055,-767.31,0.00020444,2]
[379879379,1755430245064,-4525.14,0.00020444,2]
[379879381,1755430245073,-480.0,0.00020445,2]
[379879383,1755430245084,-480.0,0.00020445,2]
[379879385,1755430245093,-480.0,0.00020445,2]
[379879387,1755430245103,-480.0,0.00020445,2]
[379879389,1755430245113,-412.6072518,0.00020445,2]
[379879391,1755430245122,-480.0,0.00020445,2]
[379879393,1755430245132,-480.0,0.00020445,2]
[379879395,1755430245141,-480.0,0.00020445,2]
[379879397,1755430245151,-480.0,0.00020445,2]
[379879399,1755430245160,-480.0,0.00020445,2]
[379879401,1755430245169,-480.0,0.00020445,2]
[379879403,1755430245179,-1053.7,0.00020445,2]
[379879405,1755430245188,-750.92,0.00020445,2]
[379879407,1755430245198,-480.0,0.00020445,2]
[379879409,1755430245208,-662.97,0.00020445,2]
[379879411,1755430245218,-480.0,0.00020445,2]
[379879413,1755430245228,-593.33,0.00020445,2]
[379879415,1755430245238,-480.0,0.00020445,2]
[379879417,1755430245248,-1808.22,0.00020445,2]
[379879419,1755430245257,-480.0,0.00020445,2]
[379879421,1755430245266,-480.0,0.00020445,2]
[379879423,1755430245276,-480.0,0.00020445,2]
[379879425,1755430245285,-334.798,0.00020446,2]
[379879427,1755430245294,-503.93,0.00020447,2]
[379879429,1755430245304,-480.0,0.00020447,2]
[379879431,1755430245313,-2412.17,0.00020447,2]
[379879433,1755430245323,-480.0,0.00020447,2]
[379879435,1755430245332,-890.92,0.00020447,2]
[379879437,1755430245341,-334.2,0.00020469,2]
[379879439,1755430245351,-160.51756169,0.00020476,2]
[379879441,1755430245361,-168.0,0.00020486,2]
[379879443,1755430245370,-156.057746,0.000205,2]
[379879445,1755430245380,-42149.76,0.000205,2]
[379879447,1755430245389,-160.0,0.0002052,4]
[379879449,1755430245399,-162.70618793,0.00020521,2]
[379879451,1755430245412,-150.06286568,0.00020521,2]
[379879453,1755430245422,-500.0,0.00020547,2]
[379879455,1755430245432,-986.25898321,0.00020566,2]
[379879457,1755430245442,-156.057746,0.00020583,20]
[379879459,1755430245452,-12682.46447135,0.00020619,3]
[379879461,1755430245461,-215.71995163,0.00020619,3]
[379879463,1755430245470,-375.77065697,0.00020619,3]
[379879465,1755430245481,-160.0,0.00020619,3]
[379879467,1755430245491,-417.15472785,0.00020619,3]
[379879468,1755430245500,-1000.0,0.00020619,2]
[379879469,1755430245510,-9007.57227342,0.00020619,3]
[379879470,1755430245519,-334.2,0.00020623,2]
[379879471,1755430245529,-502.26575725,0.00020679,2]
[379879472,1755430245538,-1000.0,0.00020679,2]
[379879473,1755430245547,-1000.0,0.00020679,2]
[379879474,1755430245557,-1000.0,0.00020679,2]
[379879475,1755430245567,-396.9245608,0.00020679,2]
[379879476,1755430245577,-162.70618793,0.00020685,2]
[379879477,1755430245587,-150.06286568,0.00020685,2]
[379879479,1755430245596,-480.0,0.00020696,2]
[379879481,1755430245606,-480.0,0.00020696,2]
[379879483,1755430245616,-1508.74,0.00020696,2]
[379879485,1755430245626,-385.40585539,0.00020696,2]
[379879487,1755430245636,-1168.17,0.00020696,2]
[379879489,1755430245646,-308.0,0.000207,2]
[379879491,1755430245656,-575.81,0.00020708,2]
[379879493,1755430245665,-1028.3,0.00020708,2]
[379879495,1755430245675,-489.31,0.00020708,2]
[379879497,1755430245685,-1039.94689832,0.00020708,2]
[379879772,1755430248338,-0.04480561,0.00019612,2]
[379879776,1755430248359,-479.95519439,0.00019612,2]
[379879778,1755430248369,-480.0,0.00019886,2]
[379879780,1755430248378,-500.0,0.00019886,2]
[379879782,1755430248387,-500.0,0.0002016,2]
[379879784,1755430248397,-480.09,0.0002016,2]
[379879786,1755430248408,-506.25103804,0.00020434,2]
[379879788,1755430248419,-187.89932599,0.00020696,2]
[379879790,1755430248429,-1959.51,0.00020708,2]
[379879792,1755430248439,-401.78067463,0.00020708,2]
[379879794,1755430248449,-1181.6,0.00020708,2]
[379879796,1755430248459,-480.0,0.00020708,2]
[379879798,1755430248469,-502.33,0.00020708,2]
[379879800,1755430248479,-798.72,0.00020708,2]
[379879802,1755430248489,-498.67,0.00020708,2]
[379879804,1755430248499,-480.0,0.00020708,2]
[379879806,1755430248509,-211.30139975,0.00020708,2]
[379879808,1755430248519,-886.73,0.00020708,2]
[379879810,1755430248529,-480.0,0.00020708,2]
[379879812,1755430248539,-480.0,0.00020708,2]
[379879814,1755430248548,-480.0,0.00020708,2]
[379879816,1755430248558,-480.0,0.00020708,2]
[379879818,1755430248568,-544.57,0.00020708,2]
[379879820,1755430248578,-480.0,0.00020708,2]
[379879822,1755430248588,-480.0,0.00020708,2]
[379879824,1755430248597,-480.0,0.00020708,2]
[379879826,1755430248606,-480.0,0.00020708,2]
[379879828,1755430248615,-480.0,0.00020708,2]
[379879829,1755430248625,-499.1,0.00020708,2]
[379879830,1755430248634,-3044.81,0.00020708,2]
[379879831,1755430248644,-487.11,0.00020708,2]
[379879832,1755430248653,-714.17,0.00020708,2]
[379879833,1755430248662,-529.04,0.00020708,2]
[379879834,1755430248672,-606.27,0.00020709,2]
[379879835,1755430248682,-480.0,0.00020709,2]
[379879836,1755430248692,-400.0,0.00020709,2]
[379879837,1755430248701,-408.98272211,0.00020709,2]
[379879838,1755430248715,-279.85727789,0.00020709,2]
[379879839,1755430248726,-150.81434384,0.00020709,2]
[379879840,1755430248735,-650.57,0.00020709,2]
[379879841,1755430248744,-480.0,0.00020709,2]
[379879842,1755430248754,-480.0,0.00020709,2]
[379879843,1755430248764,-480.0,0.00020709,2]
[379879844,1755430248773,-480.0,0.00020709,2]
[379879845,1755430248783,-531.88,0.00020709,2]
[379879846,1755430248792,-480.0,0.00020709,2]
[379879847,1755430248801,-434.97395627,0.00020709,2]
[379879848,1755430249151,-480.0,0.000196,2]
[379879849,1755430249161,-480.0,0.00019612,2]
[379879850,1755430249171,-495.63,0.00019621,2]
[379879851,1755430249182,-480.0,0.00019886,2]
[379879852,1755430249192,-452.26,0.0002016,2]
[379879853,1755430249202,-45.02604373,0.00020709,2]
[379879854,1755430249211,-1056.33,0.00020709,2]
[379879855,1755430249348,-480.0,0.00020709,2]
[379879856,1755430249358,-599.32,0.00020709,2]
[379879857,1755430249367,-386.00539848,0.00020709,2]
[379879858,1755430249376,-838.54,0.00020709,2]
[379879859,1755430249385,-480.0,0.00020709,2]
[379879860,1755430249394,-480.0,0.00020709,2]
[379879861,1755430249404,-535.36,0.00020709,2]
[379879862,1755430249417,-380.0,0.00020709,2]
[379879863,1755430249427,-480.0,0.00020709,2]
[379879864,1755430249435,-480.0,0.00020717,2]
[379879865,1755430249445,-480.0,0.00020717,2]
[379879866,1755430249454,-480.0,0.00020717,2]
[379879867,1755430249463,-480.0,0.00020717,2]
[379879868,1755430249472,-480.0,0.00020717,2]
[379879869,1755430249481,-480.0,0.00020717,2]
[379879870,1755430249491,-480.0,0.00020717,2]
[379879871,1755430249499,-572.52856479,0.00020717,2]
[379879872,1755430249652,-480.0,0.00019612,2]
[379879873,1755430249661,-480.0,0.00019886,2]
[379879874,1755430249670,-3118.67,0.00020698,3]
[379879875,1755430249679,-386.23143521,0.00020717,2]
[379879876,1755430249689,-690.4,0.00020717,2]
[379879877,1755430249698,-480.0,0.00020717,2]
[379879878,1755430249707,-480.0,0.00020717,2]
[379879879,1755430249717,-6277.47,0.00020717,2]
[379879880,1755430249726,-597.43,0.00020717,2]
[379879881,1755430249735,-1937.56,0.00020717,2]
[379879882,1755430249745,-1343.35,0.00020717,2]
[379879883,1755430249757,-480.0,0.00020718,2]
[379879884,1755430249766,-83.88856474,0.00020718,2]
[379879892,1755430250463,-6585.03143526,0.00020718,2]
[379879894,1755430250473,-767.31,0.00020718,2]
[379879896,1755430250482,-4525.14,0.00020718,2]
[379879898,1755430250491,-208.344294,0.00020719,2]
[379879900,1755430250501,-151.0,0.00020719,2]
[379879902,1755430250509,-151.0,0.00020719,2]
[379879904,1755430250518,-480.0,0.00020719,2]
[379879906,1755430250528,-480.0,0.00020719,2]
[379879908,1755430250537,-480.0,0.00020719,2]
[379879910,1755430250547,-243.04834413,0.00020719,2]
[379879912,1755430250556,-1007.503526,0.00020719,2]
[379879914,1755430250565,-1007.503526,0.00020719,2]
[379879916,1755430250575,-480.0,0.00020719,2]
[379879918,1755430250584,-480.0,0.00020719,2]
[379879920,1755430250594,-480.0,0.00020719,2]
[379879922,1755430250603,-480.0,0.00020719,2]
[379879924,1755430250612,-480.0,0.00020719,2]
[379879926,1755430250622,-480.0,0.00020719,2]
[379879928,1755430250631,-1053.7,0.00020719,2]
[379879930,1755430250640,-750.92,0.00020719,2]
[379879931,1755430250650,-480.0,0.00020719,2]
[379879933,1755430250659,-662.97,0.00020719,2]
[379879935,1755430250669,-480.0,0.00020719,2]
[379879937,1755430250678,-593.33,0.00020719,2]
[379879939,1755430250687,-480.0,0.00020719,2]
[379879941,1755430250696,-1808.22,0.00020719,2]
[379879943,1755430250705,-480.0,0.00020719,2]
[379879945,1755430250713,-480.0,0.00020719,2]
[379879947,1755430250723,-570.68,0.00020719,2]
[379879949,1755430250732,-151.0,0.0002072,2]
[379879951,1755430250741,-1759.798441,0.0002072,2]
[379879953,1755430250750,-1759.798441,0.0002072,2]
[379879955,1755430250759,-151.0,0.0002072,2]
[379879957,1755430250769,-480.0,0.00020721,2]
[379879959,1755430250778,-2412.17,0.00020721,2]
[379879961,1755430250787,-480.0,0.00020721,2]
[379879963,1755430250796,-890.92,0.00020721,2]
[379879965,1755430250805,-151.0,0.00020746,2]
[379879967,1755430250814,-152.129772,0.00020746,2]
[379879969,1755430250823,-151.0,0.00020746,2]
[379879971,1755430250832,-151.0,0.00020746,2]
[379879973,1755430250841,-151.0,0.00020746,2]
[379879975,1755430250851,-151.0,0.00020746,2]
[379879977,1755430250860,-208.344294,0.00020747,2]
[379879979,1755430250870,-193.534483,0.00020747,2]
[379879981,1755430250879,-151.0,0.00020747,2]
[379879983,1755430250888,-193.534483,0.00020747,2]
[379879985,1755430250897,-151.0,0.00020747,2]
[379879987,1755430250906,-151.0,0.00020747,2]
[379879989,1755430250915,-1759.798441,0.00020747,2]
[379879991,1755430250924,-1759.798441,0.00020747,2]
[379879993,1755430250934,-151.0,0.00020747,2]
[379879995,1755430250943,-1007.503526,0.00020747,2]
[379879997,1755430250952,-1007.503526,0.00020747,2]
[379879999,1755430250961,-168.0,0.00020751,2]
[379880001,1755430250970,-151.0,0.00020773,2]
[379880003,1755430250981,-151.0,0.00020773,2]
[379880005,1755430250990,-151.0,0.00020773,2]
[379880007,1755430250999,-151.0,0.00020773,2]
[379880009,1755430251008,-151.0,0.00020773,2]
[379880011,1755430251018,-334.2,0.00020776,2]